[Event "Vienna Chess Open 2019"]
[Site "Vienna"]
[Date "2019.08.22"]
[Round "7.3"]
[White "Haldorsen, Benjamin"]
[Black "Suta, Andraz"]
[Result "1/2-1/2"]
[ECO "C45"]
[WhiteElo "2452"]
[BlackElo "2452"]
[Annotator "ChessBase"]
[PlyCount "95"]
[EventDate "2019.08.17"]
[EventType "swiss"]
[EventCountry "AUT"]
[SourceTitle "playchess.com"]
[Source "ChessBase"]
[SourceQuality "1"]
[TimeControl "40/5400+30:1800+30"]

1. e4 {[%emt 0:00:00]} e5 {[%emt 0:08:03]} 2. Nf3 {[%emt 0:00:25]} Nc6 {[%emt 0:00:38]} 3. d4 {[%emt 0:00:30]} exd4 {[%emt 0:00:36]} 4. Nxd4 {[%emt 0:00:08]} Nf6 {[%emt 0:01:57]} 5. Nxc6 {[%emt 0:00:05]} bxc6 {[%emt 0:00:08]} 6. e5 {[%emt 0:00:04]} Qe7 {[%emt 0:00:58]} 7. Qe2 {[%emt 0:00:02]} Nd5 {[%emt 0:00:18]} 8. h4 {[%emt 0:00:05]} d6 {[%emt 0:06:40]} 9. c4 {[%emt 0:00:34]} Nb6 {[%emt 0:04:32]} 10. exd6 {[%emt 0:00:01]} Qxe2+ {[%emt 0:03:05]} 11. Bxe2 {[%emt 0:00:03]} cxd6 {[%emt 0:00:53]} 12. Nc3 {[%emt 0:00:06]} Be6 {[%emt 0:02:40]} 13. Bf3 {[%emt 0:00:42]} Rc8 {[%emt 0:13:09]} 14. b3 {[%emt 0:00:04]} d5 {[%emt 0:01:25]} 15. cxd5 {[%emt 0:00:21]} Bb4 {[%emt 0:07:45]} 16. Bd2 {[%emt 0:01:18]} Nxd5 {[%emt 0:07:06]} 17. Nxd5 {[%emt 0:08:22]} Bxd2+ {[%emt 0:02:08]} 18. Kxd2 {[%emt 0:00:07]} cxd5 {[%emt 0:01:51]} 19. Rac1 {[%emt 0:23:18]} Kd7 {[%emt 0:00:58]} 20. h5 {[%emt 0:00:55]} Rxc1 {[%emt 0:09:21]} 21. Kxc1 {[%emt 0:02:13]} Rc8+ {[%emt 0:04:20]} 22. Kd2 {[%emt 0:00:05]} h6 {[%emt 0:01:21]} 23. Rh4 {[%emt 0:01:12]} a5 {[%emt 0:00:48]} 24. Be2 {[%emt 0:06:11]} Kd6 {[%emt 0:01:14]} 25. Bd3 {[%emt 0:00:49]} Rc7 {[%emt 0:01:24]} 26. Ra4 {[%emt 0:07:25]} Rc5 {[%emt 0:02:13]} 27. f4 {[%emt 0:02:57]} Bd7 {[%emt 0:01:28]} 28. Rd4 {[%emt 0:00:30]} Bb5 {[%emt 0:01:31]} 29. Be4 {[%emt 0:07:24]} Bc6 {[%emt 0:01:36]} 30. Bf3 {[%emt 0:00:40]} f6 {[%emt 0:00:52]} 31. Bg4 {[%emt 0:10:11]} Bd7 {[%emt 0:01:53]} 32. Bxd7 {[%emt 0:03:51]} Kxd7 {[%emt 0:00:01]} 33. Rd3 {[%emt 0:00:17]} Kd6 {[%emt 0:00:34]} 34. Rg3 {[%emt 0:01:30]} Rc7 {[%emt 0:00:22]} 35. Rg6 {[%emt 0:00:31]} Ke6 {[%emt 0:04:56]} 36. g4 {[%emt 0:01:00]} a4 {[%emt 0:02:52]} 37. g5 {[%emt 0:00:11]} axb3 {[%emt 0:00:59]} 38. axb3 {[%emt 0:00:02]} d4 {[%emt 0:01:16]} 39. Kd3 {[%emt 0:03:50]} Rc3+ {[%emt 0:00:07]} 40. Kxd4 {[%emt 0:00:10]} Rxb3 {[%emt 0:00:08]} 41. Rxg7 {[%emt 0:30:49]} fxg5 {[%emt 0:32:30]} 42. fxg5 {[%emt 0:00:12]} hxg5 {[%emt 0:00:14]} 43. Rxg5 {[%emt 0:00:10]} Rb4+ {[%emt 0:02:08]} 44. Ke3 {[%emt 0:00:09]} Rh4 {[%emt 0:00:06]} 45. Kf3 {[%emt 0:00:05]} Kf6 {[%emt 0:00:06]} 46. Ra5 {[%emt 0:00:15]} Kg7 {[%emt 0:00:12]} 47. Kg3 {[%emt 0:00:09]} Rb4 {[%emt 0:00:09]} 48. h6+ {[%emt 0:00:14]} 1/2-1/2

[Event "Vienna Chess Open 2019"]
[Site "Vienna"]
[Date "2019.08.22"]
[Round "7.3"]
[White "Chylewski, Patryk"]
[Black "Abdumalik, Zhansaya"]
[Result "0-1"]
[ECO "D85"]
[WhiteElo "2356"]
[BlackElo "2457"]
[Annotator "ChessBase"]
[PlyCount "110"]
[EventDate "2019.08.17"]
[EventType "swiss"]
[EventCountry "AUT"]
[SourceTitle "playchess.com"]
[Source "ChessBase"]
[SourceQuality "1"]
[TimeControl "40/5400+30:1800+30"]

1. d4 {[%emt 0:00:00]} Nf6 {[%emt 0:00:00]} 2. c4 {[%emt 0:00:00]} g6 {[%emt 0:00:00]} 3. Nc3 {[%emt 0:00:00]} d5 {[%emt 0:00:06]} 4. cxd5 {[%emt 0:00:00]} Nxd5 {[%emt 0:00:06]} 5. e4 {[%emt 0:00:00]} Nxc3 {[%emt 0:00:07]} 6. bxc3 {[%emt 0:00:02]} Bg7 {[%emt 0:00:07]} 7. Nf3 {[%emt 0:00:05]} c5 {[%emt 0:01:27]} 8. Bb5+ {[%emt 0:00:13]} Nc6 {[%emt 0:02:44]} 9. O-O {[%emt 0:00:23]} a6 {[%emt 0:08:35]} 10. Bxc6+ {[%emt 0:00:38]} bxc6 {[%emt 0:00:04]} 11. Be3 {[%emt 0:02:39]} O-O {[%emt 0:08:00]} 12. Rc1 {[%emt 0:03:07]} Qa5 {[%emt 0:07:45]} 13. Qc2 {[%emt 0:29:51]} Be6 {[%emt 0:03:15]} 14. a4 {[%emt 0:09:11]} Rab8 {[%emt 0:08:46]} 15. Rb1 {[%emt 0:04:11]} f5 {[%emt 0:01:20]} 16. exf5 {[%emt 0:06:44]} Rxb1 {[%emt 0:11:47]} 17. Qxb1 {[%emt 0:04:06]} gxf5 {[%emt 0:02:50]} 18. dxc5 {[%emt 0:10:37]} Qxc3 {[%emt 0:07:16]} 19. Rc1 {[%emt 0:04:17]} Qa3 {[%emt 0:03:32]} 20. Bd4 {[%emt 0:13:40]} Bxd4 {[%emt 0:01:27]} 21. Nxd4 {[%emt 0:00:08]} Bd5 {[%emt 0:00:29]} 22. Re1 {[%emt 0:02:46]} Be4 {[%emt 0:07:39]} 23. Qd1 {[%emt 0:00:18]} Rd8 {[%emt 0:03:52]} 24. Qd2 {[%emt 0:00:31]} Kh8 {[%emt 0:03:57]} 25. Qf4 {[%emt 0:02:48]} Qxc5 {[%emt 0:01:02]} 26. Ne2 {[%emt 0:05:25]} Qd6 {[%emt 0:01:52]} 27. f3 {[%emt 0:01:07]} Bd3 {[%emt 0:02:16]} 28. Rd1 {[%emt 0:00:27]} c5 {[%emt 0:02:09]} 29. Qh4 {[%emt 0:00:42]} c4 {[%emt 0:02:28]} 30. Kh1 {[%emt 0:00:31]} Rg8 {[%emt 0:02:19]} 31. Nf4 {[%emt 0:00:27]} Re8 {[%emt 0:04:01]} 32. Nxd3 {[%emt 0:00:32]} cxd3 {[%emt 0:00:07]} 33. Qc4 {[%emt 0:00:30]} Rd8 {[%emt 0:00:44]} 34. h3 {[%emt 0:00:25]} d2 {[%emt 0:01:46]} 35. f4 {[%emt 0:00:17]} Kg7 {[%emt 0:00:35]} 36. Qc3+ {[%emt 0:00:17]} Qd4 {[%emt 0:00:14]} 37. Qc7 {[%emt 0:00:52]} Rd7 {[%emt 0:00:41]} 38. Qc6 {[%emt 0:00:22]} Rd6 {[%emt 0:00:16]} 39. Qc7 {[%emt 0:00:49]} Qe3 {[%emt 0:00:18]} 40. Qc2 {[%emt 0:00:22]} Qxf4 {[%emt 0:00:46]} 41. Qc3+ {[%emt 0:00:30]} Rd4 {[%emt 0:02:05]} 42. Kg1 {[%emt 0:02:03]} Qe5 {[%emt 0:01:03]} 43. Kh1 {[%emt 0:01:33]} Kf7 {[%emt 0:01:17]} 44. Kg1 {[%emt 0:00:35]} Qd5 {[%emt 0:00:16]} 45. Qe3 {[%emt 0:00:35]} Qe4 {[%emt 0:05:01]} 46. Qb3+ {[%emt 0:00:43]} Qe6 {[%emt 0:03:49]} 47. Qf3 {[%emt 0:00:56]} h6 {[%emt 0:01:18]} 48. Qf2 {[%emt 0:01:16]} Qd5 {[%emt 0:00:49]} 49. Qe2 {[%emt 0:00:17]} a5 {[%emt 0:01:04]} 50. Qh5+ {[%emt 0:00:09]} Kg7 {[%emt 0:00:05]} 51. Qe2 {[%emt 0:00:09]} e5 {[%emt 0:00:36]} 52. Qa6 {[%emt 0:00:21]} Re4 {[%emt 0:02:23]} 53. Qa7+ {[%emt 0:00:11]} Kg6 {[%emt 0:00:28]} 54. Qa6+ {[%emt 0:00:38]} Kg5 {[%emt 0:00:36]} 55. Qf1 {[%emt 0:00:29]} Rxa4 {[%emt 0:00:37]} 0-1

[Event "Vienna Chess Open 2019"]
[Site "Vienna"]
[Date "2019.08.22"]
[Round "7.4"]
[White "Ankit, R. Rajpara"]
[Black "Soysal, Serkan"]
[Result "1/2-1/2"]
[ECO "B12"]
[WhiteElo "2454"]
[BlackElo "2388"]
[Annotator "ChessBase"]
[PlyCount "110"]
[EventDate "2019.08.17"]
[EventType "swiss"]
[EventCountry "AUT"]
[SourceTitle "playchess.com"]
[Source "ChessBase"]
[SourceQuality "1"]
[TimeControl "40/5400+30:1800+30"]

1. e4 {[%emt 0:00:00]} c6 {[%emt 0:04:13]} 2. d4 {[%emt 0:00:00]} d5 {[%emt 0:00:01]} 3. e5 {[%emt 0:00:00]} Bf5 {[%emt 0:00:03]} 4. Nf3 {[%emt 0:00:04]} e6 {[%emt 0:00:02]} 5. Be2 {[%emt 0:00:08]} Bb4+ {[%emt 0:00:02]} 6. c3 {[%emt 0:00:54]} Ba5 {[%emt 0:00:01]} 7. Nbd2 {[%emt 0:03:18]} Nd7 {[%emt 0:00:08]} 8. Nf1 {[%emt 0:01:29]} f6 {[%emt 0:03:31]} 9. exf6 {[%emt 0:15:36]} Ngxf6 {[%emt 0:00:15]} 10. Nh4 {[%emt 0:00:50]} O-O {[%emt 0:01:37]} 11. Nxf5 {[%emt 0:02:56]} exf5 {[%emt 0:00:09]} 12. Ng3 {[%emt 0:00:12]} Ne4 {[%emt 0:00:47]} 13. Nxe4 {[%emt 0:01:06]} fxe4 {[%emt 0:00:12]} 14. Be3 {[%emt 0:00:20]} b5 {[%emt 0:01:54]} 15. a4 {[%emt 0:13:35]} a6 {[%emt 0:01:42]} 16. axb5 {[%emt 0:01:38]} axb5 {[%emt 0:00:13]} 17. O-O {[%emt 0:00:56]} Qe7 {[%emt 0:03:54]} 18. Qd2 {[%emt 0:05:55]} Bc7 {[%emt 0:00:20]} 19. b3 {[%emt 0:10:53]} Nb6 {[%emt 0:00:30]} 20. Qb2 {[%emt 0:07:40]} Bd6 {[%emt 0:01:59]} 21. Rxa8 {[%emt 0:01:36]} Rxa8 {[%emt 0:01:38]} 22. Ra1 {[%emt 0:00:12]} Qb7 {[%emt 0:02:19]} 23. Ra2 {[%emt 0:00:59]} Kf8 {[%emt 0:06:19]} 24. g3 {[%emt 0:05:41]} Rxa2 {[%emt 0:02:24]} 25. Qxa2 {[%emt 0:00:05]} Qa8 {[%emt 0:00:03]} 26. Qb1 {[%emt 0:03:14]} Qe8 {[%emt 0:03:16]} 27. Qf1 {[%emt 0:00:44]} Kg8 {[%emt 0:19:48]} 28. Qh3 {[%emt 0:04:06]} Nd7 {[%emt 0:02:59]} 29. Bg4 {[%emt 0:02:28]} Nf8 {[%emt 0:00:07]} 30. Qf1 {[%emt 0:03:21]} Qa8 {[%emt 0:01:06]} 31. c4 {[%emt 0:01:56]} bxc4 {[%emt 0:06:49]} 32. bxc4 {[%emt 0:00:23]} Qa6 {[%emt 0:01:57]} 33. Be2 {[%emt 0:10:21]} Qb7 {[%emt 0:00:01]} 34. h4 {[%emt 0:02:49]} Be7 {[%emt 0:00:09]} 35. h5 {[%emt 0:01:26]} Bf6 {[%emt 0:00:13]} 36. Qh3 {[%emt 0:00:36]} Qb2 {[%emt 0:01:53]} 37. Bf1 {[%emt 0:00:31]} Bxd4 {[%emt 0:00:51]} 38. Bxd4 {[%emt 0:00:04]} Qxd4 {[%emt 0:00:02]} 39. cxd5 {[%emt 0:00:14]} cxd5 {[%emt 0:00:22]} 40. Qf5 {[%emt 0:00:14]} Qc5 {[%emt 0:12:39]} 41. Qe5 {[%emt 0:31:12]} h6 {[%emt 0:34:28]} 42. Bh3 {[%emt 0:00:00]} Qc1+ {[%emt 0:00:00]} 43. Kg2 {[%emt 0:00:00]} Qc6 {[%emt 0:00:00]} 44. Bf5 {[%emt 0:00:00]} Kf7 {[%emt 0:00:00]} 45. f3 {[%emt 0:00:00]} exf3+ {[%emt 0:00:00]} 46. Kxf3 {[%emt 0:00:00]} Ne6 {[%emt 0:00:00]} 47. g4 {[%emt 0:00:00]} Nf8 {[%emt 0:07:52]} 48. Ke3 {[%emt 0:00:22]} g6 {[%emt 0:02:35]} 49. hxg6+ {[%emt 0:00:50]} Nxg6 {[%emt 0:00:02]} 50. Bxg6+ {[%emt 0:00:11]} Kxg6 {[%emt 0:00:14]} 51. Qf5+ {[%emt 0:00:26]} Kg7 {[%emt 0:00:01]} 52. Kd4 {[%emt 0:00:23]} Qf6+ {[%emt 0:02:50]} 53. Kxd5 {[%emt 0:00:09]} Qxf5+ {[%emt 0:00:04]} 54. gxf5 {[%emt 0:00:04]} Kf6 {[%emt 0:00:02]} 55. Ke4 {[%emt 0:00:05]} h5 {[%emt 0:00:03]} 1/2-1/2

[Event "Vienna Chess Open 2019"]
[Site "Vienna"]
[Date "2019.08.22"]
[Round "7.4"]
[White "Schiffer, Stefan"]
[Black "Bakhmatsky, Vladislav"]
[Result "0-1"]
[ECO "C55"]
[WhiteElo "2442"]
[BlackElo "2442"]
[Annotator "NA"]
[PlyCount "118"]
[EventDate "2019.08.17"]
[EventType "swiss"]
[EventCountry "AUT"]
[SourceTitle "playchess.com"]
[Source "ChessBase"]
[SourceQuality "1"]
[TimeControl "40/5400+30:1800+30"]

1. e4 {[%emt 0:00:00]} e5 {[%emt 0:00:26]} 2. Nf3 {[%emt 0:00:02]} Nc6 {[%emt 0:00:03]} 3. Bc4 {[%emt 0:00:41]} Nf6 {[%emt 0:00:29]} 4. d3 {[%emt 0:00:44]} Be7 {[%emt 0:04:33]} 5. O-O {[%emt 0:02:30]} O-O {[%emt 0:00:14]} 6. Nbd2 {[%emt 0:03:33]} d6 {[%emt 0:10:04]} 7. a4 {[%emt 0:03:05]} Be6 {[%emt 0:03:21]} 8. Bxe6 {[%emt 0:02:53]} fxe6 {[%emt 0:00:05]} 9. c3 {[%emt 0:01:00]} Qd7 {[%emt 0:40:40]} 10. Nc4 {[%emt 0:05:32]} Rae8 {[%emt 0:02:08]} 11. Qe2 {[%emt 0:05:21]} Bd8 {[%emt 0:00:45]} 12. Bg5 {[%emt 0:05:31]} Qf7 {[%emt 0:08:05]} 13. d4 {[%emt 0:08:54]} exd4 {[%emt 0:08:23]} 14. e5 {[%emt 0:03:16]} dxe5 {[%emt 0:03:27]} 15. Nfxe5 {[%emt 0:06:34]} Nxe5 {[%emt 0:00:21]} 16. Nxe5 {[%emt 0:00:05]} Qh5 {[%emt 0:00:04]} 17. Qxh5 {[%emt 0:00:08]} Nxh5 {[%emt 0:00:03]} 18. Bd2 {[%emt 0:00:21]} dxc3 {[%emt 0:00:37]} 19. Bxc3 {[%emt 0:00:27]} Nf4 {[%emt 0:00:47]} 20. Rfe1 {[%emt 0:01:43]} Bf6 {[%emt 0:01:45]} 21. Bb4 {[%emt 0:03:34]} Be7 {[%emt 0:02:47]} 22. Bc3 {[%emt 0:00:53]} Bd6 {[%emt 0:00:52]} 23. Rad1 {[%emt 0:02:54]} Nd5 {[%emt 0:01:01]} 24. Bd4 {[%emt 0:01:10]} Rf5 {[%emt 0:03:03]} 25. g3 {[%emt 0:03:05]} Nb4 {[%emt 0:02:19]} 26. Re4 {[%emt 0:03:47]} a6 {[%emt 0:01:29]} 27. Nc4 {[%emt 0:04:22]} Bf8 {[%emt 0:01:55]} 28. Ne3 {[%emt 0:03:27]} Rf7 {[%emt 0:00:55]} 29. Bc3 {[%emt 0:02:18]} Nc6 {[%emt 0:00:20]} 30. f4 {[%emt 0:02:14]} Bd6 {[%emt 0:02:13]} 31. Kg2 {[%emt 0:01:50]} Rfe7 {[%emt 0:00:38]} 32. Nc4 {[%emt 0:01:22]} Bc5 {[%emt 0:00:05]} 33. Kf3 {[%emt 0:03:48]} Rd8 {[%emt 0:00:48]} 34. Rxd8+ {[%emt 0:01:07]} Nxd8 {[%emt 0:00:01]} 35. Ne5 {[%emt 0:00:52]} Nf7 {[%emt 0:00:42]} 36. b4 {[%emt 0:04:06]} Nxe5+ {[%emt 0:00:27]} 37. Rxe5 {[%emt 0:01:30]} Bd6 {[%emt 0:00:21]} 38. Re2 {[%emt 0:00:24]} Kf7 {[%emt 0:01:25]} 39. Ke4 {[%emt 0:01:54]} Re8 {[%emt 0:00:43]} 40. Kd3 {[%emt 0:00:56]} Rb8 {[%emt 0:00:53]} 41. Re1 {[%emt 0:34:57]} Be7 {[%emt 0:05:20]} 42. Rc1 {[%emt 0:00:00]} Rd8+ {[%emt 0:00:44]} 43. Ke4 {[%emt 0:00:00]} c6 {[%emt 0:02:50]} 44. Rc2 {[%emt 0:00:00]} Rd5 {[%emt 0:03:00]} 45. Bd2 {[%emt 0:00:00]} Ke8 {[%emt 0:03:31]} 46. Ra2 {[%emt 0:00:00]} Kd7 {[%emt 0:01:26]} 47. Rc2 {[%emt 0:00:00]} Bf6 {[%emt 0:04:41]} 48. Be3 {[%emt 0:00:00]} a5 {[%emt 0:00:07]} 49. bxa5 {[%emt 0:00:00]} Rxa5 {[%emt 0:00:02]} 50. Rc4 {[%emt 0:00:00]} b5 {[%emt 0:00:21]} 51. axb5 {[%emt 0:00:00]} cxb5 {[%emt 0:00:10]} 52. Rc5 {[%emt 0:00:00]} Ra4+ {[%emt 0:02:32]} 53. Kd3 {[%emt 0:00:00]} Ra3+ {[%emt 0:00:25]} 54. Ke4 {[%emt 0:00:00]} Rb3 {[%emt 0:02:46]} 55. f5 {[%emt 0:00:00]} Kd6 {[%emt 0:03:41]} 56. Bg1 {[%emt 0:00:00]} Rb1 {[%emt 0:00:33]} 57. Bf2 {[%emt 0:00:00]} Rf1 {[%emt 0:00:48]} 58. Be3 {[%emt 0:00:00]} exf5+ {[%emt 0:01:34]} 59. Kd3 {[%emt 0:00:00]} Rd1+ {[%emt 0:00:08] Kd4 Ke5+} 0-1

[Event "Vienna Chess Open 2019"]
[Site "Vienna"]
[Date "2019.08.22"]
[Round "7.4"]
[White "Froewis, Georg"]
[Black "Buhmann, Rainer"]
[Result "1/2-1/2"]
[ECO "A01"]
[WhiteElo "2429"]
[BlackElo "2574"]
[Annotator "ChessBase"]
[PlyCount "133"]
[EventDate "2019.08.17"]
[EventType "swiss"]
[EventCountry "AUT"]
[SourceTitle "playchess.com"]
[Source "ChessBase"]
[SourceQuality "1"]
[TimeControl "40/5400+30:1800+30"]

1. b3 {[%emt 0:00:00]} Nf6 {[%emt 0:00:47]} 2. Bb2 {[%emt 0:00:19]} e6 {[%emt 0:00:11]} 3. Nf3 {[%emt 0:00:24]} Be7 {[%emt 0:00:41]} 4. c4 {[%emt 0:05:54]} O-O {[%emt 0:01:31]} 5. g3 {[%emt 0:00:37]} d5 {[%emt 0:09:27]} 6. Bg2 {[%emt 0:00:07]} a5 {[%emt 0:01:37]} 7. Nc3 {[%emt 0:06:26]} c6 {[%emt 0:02:55]} 8. e3 {[%emt 0:03:17]} b6 {[%emt 0:03:38]} 9. O-O {[%emt 0:10:36]} Ba6 {[%emt 0:00:46]} 10. Qc2 {[%emt 0:01:30]} dxc4 {[%emt 0:08:41]} 11. Rfc1 {[%emt 0:05:50]} cxb3 {[%emt 0:01:25]} 12. Qxb3 {[%emt 0:00:02]} b5 {[%emt 0:18:06]} 13. a3 {[%emt 0:07:13]} Ra7 {[%emt 0:01:27]} 14. Nd4 {[%emt 0:07:23]} Rd7 {[%emt 0:12:26]} 15. Ne4 {[%emt 0:17:35]} a4 {[%emt 0:03:43]} 16. Qc2 {[%emt 0:07:38]} Bb7 {[%emt 0:15:20]} 17. Nc5 {[%emt 0:05:31]} Bxc5 {[%emt 0:00:05]} 18. Qxc5 {[%emt 0:00:01]} h6 {[%emt 0:04:09]} 19. Qe5 {[%emt 0:08:02]} Re8 {[%emt 0:03:57]} 20. Rc2 {[%emt 0:02:15]} Ng4 {[%emt 0:04:07]} 21. Qc5 {[%emt 0:02:12]} Qe7 {[%emt 0:03:41]} 22. Qxe7 {[%emt 0:04:30]} Rexe7 {[%emt 0:00:13]} 23. Bc3 {[%emt 0:00:08]} Re8 {[%emt 0:01:02]} 24. Bb4 {[%emt 0:01:16]} Ne5 {[%emt 0:00:17]} 25. f4 {[%emt 0:00:41]} Nd3 {[%emt 0:00:52]} 26. Ba5 {[%emt 0:00:42]} e5 {[%emt 0:00:22]} 27. Nxc6 {[%emt 0:01:50]} Nxc6 {[%emt 0:00:51]} 28. Bxc6 {[%emt 0:00:01]} Bxc6 {[%emt 0:00:13]} 29. Rxc6 {[%emt 0:00:01]} exf4 {[%emt 0:00:42]} 30. gxf4 {[%emt 0:00:02]} Nb2 {[%emt 0:00:40]} 31. Ra2 {[%emt 0:02:29]} Nc4 {[%emt 0:00:05]} 32. Bc3 {[%emt 0:00:03]} Red8 {[%emt 0:00:25]} 33. Bd4 {[%emt 0:00:37]} Na5 {[%emt 0:01:01]} 34. Rb6 {[%emt 0:01:02]} Nb3 {[%emt 0:00:11]} 35. Bc3 {[%emt 0:00:08]} Nc1 {[%emt 0:01:20]} 36. Rc2 {[%emt 0:00:36]} Ne2+ {[%emt 0:00:11]} 37. Kf2 {[%emt 0:00:41]} Nxc3 {[%emt 0:00:05]} 38. dxc3 {[%emt 0:00:06]} Rd2+ {[%emt 0:01:04]} 39. Rxd2 {[%emt 0:00:01]} Rxd2+ {[%emt 0:00:05]} 40. Kf3 {[%emt 0:00:04]} Rc2 {[%emt 0:01:05]} 41. Rxb5 {[%emt 0:30:44]} Rxc3 {[%emt 0:30:08]} 42. Ra5 {[%emt 0:00:00]} Rxa3 {[%emt 0:00:00]} 43. Ra8+ {[%emt 0:00:00]} Kh7 {[%emt 0:00:00]} 44. h4 {[%emt 0:00:00]} g6 {[%emt 0:00:00]} 45. Ke4 {[%emt 0:00:00]} Kg7 {[%emt 0:00:00]} 46. Kd4 {[%emt 0:00:00]} Ra1 {[%emt 0:00:00]} 47. Ke5 {[%emt 0:00:00]} a3 {[%emt 0:00:00]} 48. e4 {[%emt 0:00:00]} a2 {[%emt 0:00:00]} 49. Ra6 {[%emt 0:00:39]} h5 {[%emt 0:00:05]} 50. Ra7 {[%emt 0:00:29]} Rf1 {[%emt 0:03:38]} 51. Rxa2 {[%emt 0:00:20]} f6+ {[%emt 0:00:03]} 52. Kd5 {[%emt 0:01:34]} Rxf4 {[%emt 0:00:05]} 53. Ra7+ {[%emt 0:00:38]} Kh6 {[%emt 0:00:05]} 54. Rf7 {[%emt 0:00:03]} Rxh4 {[%emt 0:02:57]} 55. Rxf6 {[%emt 0:00:02]} Rh1 {[%emt 0:00:24]} 56. e5 {[%emt 0:00:17]} h4 {[%emt 0:00:25]} 57. e6 {[%emt 0:00:21]} Rd1+ {[%emt 0:00:26]} 58. Kc6 {[%emt 0:00:10]} Kg5 {[%emt 0:00:45]} 59. Rf8 {[%emt 0:01:25]} Re1 {[%emt 0:00:27]} 60. Kd6 {[%emt 0:00:01]} h3 {[%emt 0:00:19]} 61. e7 {[%emt 0:00:12]} Kg4 {[%emt 0:00:48]} 62. e8=Q {[%emt 0:00:16]} Rxe8 {[%emt 0:00:03]} 63. Rxe8 {[%emt 0:00:04]} g5 {[%emt 0:00:19]} 64. Rh8 {[%emt 0:00:38]} Kg3 {[%emt 0:00:08]} 65. Ke5 {[%emt 0:00:07]} h2 {[%emt 0:00:05]} 66. Kf5 {[%emt 0:00:08]} Kg2 {[%emt 0:00:03]} 67. Ke4 1/2-1/2

[Event "Vienna Chess Open 2019"]
[Site "Vienna"]
[Date "2019.08.22"]
[Round "7.5"]
[White "Fedorovsky, Michael"]
[Black "Ruff, Maximilian"]
[Result "1/2-1/2"]
[ECO "D37"]
[WhiteElo "2441"]
[BlackElo "2353"]
[Annotator "NA"]
[PlyCount "45"]
[EventDate "2019.08.17"]
[EventType "swiss"]
[EventCountry "AUT"]
[SourceTitle "playchess.com"]
[Source "ChessBase"]
[SourceQuality "1"]
[TimeControl "40/5400+30:1800+30"]

1. d4 Nf6 {[%emt 0:01:37]} 2. c4 {[%emt 0:00:00]} e6 {[%emt 0:00:18]} 3. Nf3 {[%emt 0:00:00]} d5 {[%emt 0:00:10]} 4. Nc3 {[%emt 0:00:57]} Nbd7 {[%emt 0:01:07]} 5. cxd5 {[%emt 0:04:52]} exd5 {[%emt 0:00:07]} 6. Bg5 {[%emt 0:00:04]} Be7 {[%emt 0:01:00]} 7. e3 {[%emt 0:00:05]} c6 {[%emt 0:00:07]} 8. Bd3 {[%emt 0:00:36]} h6 {[%emt 0:01:03]} 9. Bh4 {[%emt 0:01:12]} Nh5 {[%emt 0:00:16]} 10. Bxe7 {[%emt 0:00:53]} Qxe7 {[%emt 0:00:06]} 11. O-O {[%emt 0:08:36]} O-O {[%emt 0:01:30]} 12. Rb1 {[%emt 0:01:02]} a5 {[%emt 0:04:58]} 13. a3 {[%emt 0:03:17]} Nhf6 {[%emt 0:01:02]} 14. Qc2 {[%emt 0:05:19]} Re8 {[%emt 0:06:59]} 15. b4 {[%emt 0:03:46]} axb4 {[%emt 0:00:05]} 16. axb4 {[%emt 0:00:02]} b5 {[%emt 0:02:04]} 17. Nd2 {[%emt 0:28:08]} Nb6 {[%emt 0:13:47]} 18. e4 {[%emt 0:03:59]} dxe4 {[%emt 0:01:01]} 19. Ncxe4 {[%emt 0:05:24]} Nxe4 {[%emt 0:07:41]} 20. Nxe4 {[%emt 0:04:38]} Nc4 {[%emt 0:09:06]} 21. Bxc4 {[%emt 0:04:32]} Qxe4 {[%emt 0:01:54]} 22. Bd3 {[%emt 0:00:19]} Qxd4 {[%emt 0:10:11]} 23. Qxc6 {[%emt 0:01:45]} 1/2-1/2

[Event "Vienna Chess Open 2019"]
[Site "Vienna"]
[Date "2019.08.22"]
[Round "7.5"]
[White "Ravi, Teja S."]
[Black "Palac, Mladen"]
[Result "0-1"]
[ECO "E20"]
[WhiteElo "2420"]
[BlackElo "2551"]
[Annotator "ChessBase"]
[PlyCount "80"]
[EventDate "2019.08.17"]
[EventType "swiss"]
[EventCountry "AUT"]
[SourceTitle "playchess.com"]
[Source "ChessBase"]
[SourceQuality "1"]
[TimeControl "40/5400+30:1800+30"]

1. d4 {[%emt 0:00:00]} Nf6 {[%emt 0:08:43]} 2. c4 {[%emt 0:00:00]} e6 {[%emt 0:00:05]} 3. Nc3 {[%emt 0:00:00]} Bb4 {[%emt 0:00:05]} 4. g3 {[%emt 0:00:01]} O-O {[%emt 0:03:51]} 5. Bg2 {[%emt 0:00:11]} Bxc3+ {[%emt 0:01:05]} 6. bxc3 {[%emt 0:00:06]} d6 {[%emt 0:00:02]} 7. Nf3 {[%emt 0:03:33]} Nc6 {[%emt 0:00:27]} 8. O-O {[%emt 0:01:09]} Re8 {[%emt 0:12:08]} 9. Nd2 {[%emt 0:11:25]} e5 {[%emt 0:03:47]} 10. d5 {[%emt 0:03:47]} Na5 {[%emt 0:00:45]} 11. e4 {[%emt 0:03:28]} b6 {[%emt 0:01:25]} 12. Re1 {[%emt 0:01:52]} Ba6 {[%emt 0:00:49]} 13. Bf1 {[%emt 0:00:06]} c6 {[%emt 0:02:02]} 14. Ba3 {[%emt 0:19:47]} cxd5 {[%emt 0:14:45]} 15. exd5 {[%emt 0:02:47]} Qc7 {[%emt 0:15:45]} 16. Qa4 {[%emt 0:02:01]} Rec8 {[%emt 0:01:35]} 17. Rac1 {[%emt 0:09:59]} Bxc4 {[%emt 0:03:06]} 18. Nxc4 {[%emt 0:08:29]} Nxc4 {[%emt 0:01:58]} 19. Bxc4 {[%emt 0:00:07]} Qxc4 {[%emt 0:00:03]} 20. Qxc4 {[%emt 0:00:06]} Rxc4 {[%emt 0:00:01]} 21. Bxd6 {[%emt 0:00:05]} e4 {[%emt 0:00:30]} 22. Red1 {[%emt 0:01:29]} Nd7 {[%emt 0:01:21]} 23. f3 {[%emt 0:07:22]} exf3 {[%emt 0:04:59]} 24. Kf2 {[%emt 0:00:09]} f5 {[%emt 0:08:50]} 25. Kxf3 {[%emt 0:01:31]} Re8 {[%emt 0:02:18]} 26. Rd4 {[%emt 0:00:55]} Re4 {[%emt 0:01:56]} 27. Rxc4 {[%emt 0:01:30]} Rxc4 {[%emt 0:00:01]} 28. Bf4 {[%emt 0:01:52]} Kf7 {[%emt 0:01:24]} 29. d6 {[%emt 0:04:17]} Nc5 {[%emt 0:02:19]} 30. h3 {[%emt 0:07:28]} Ke6 {[%emt 0:00:45]} 31. Ke3 {[%emt 0:02:39]} Kd7 {[%emt 0:02:12]} 32. Rc2 {[%emt 0:00:48]} Ne6 {[%emt 0:03:04]} 33. Kd3 {[%emt 0:01:00]} Re4 {[%emt 0:01:02]} 34. Be3 {[%emt 0:00:46]} h5 {[%emt 0:01:44]} 35. Rf2 {[%emt 0:04:27]} g6 {[%emt 0:00:02]} 36. Bf4 {[%emt 0:00:56]} h4 {[%emt 0:00:38]} 37. Bd2 {[%emt 0:00:30]} hxg3 {[%emt 0:00:23]} 38. Rf3 {[%emt 0:00:28]} Nc5+ {[%emt 0:00:23]} 39. Kc2 {[%emt 0:00:02]} Re2 {[%emt 0:00:10]} 40. Kd1 {[%emt 0:00:04]} Rxd2+ {[%emt 0:00:12]} 0-1